fUST/lending_fUST_20240729
["ID","MTS","AMOUNT","RATE_DAILY","PERIOD"]
[333490041,1722192652822,-500.0,0.00015508,2]
[333490042,1722192652831,-500.0,0.00015508,2]
[333490043,1722192652841,-500.0,0.00015508,2]
[333490044,1722192652851,-500.0,0.00015508,2]
[333490045,1722192652861,-500.0,0.00015508,2]
[333490046,1722192652870,-500.0,0.00015508,2]
[333490047,1722192652880,-416.17399427,0.00015508,2]
[333490048,1722192652890,-500.0,0.00015508,2]
[333490049,1722192652900,-500.0,0.00015508,2]
[333490050,1722192652910,-1752.5,0.00015508,2]
[333490051,1722192652920,-1516.17,0.00015509,2]
[333490052,1722192652929,-500.0,0.00015509,2]
[333490053,1722192652940,-3446.90059829,0.0001551,5]
[333490054,1722192652951,-500.0,0.0001551,2]
[333490055,1722192652962,-500.0,0.0001551,2]
[333490056,1722192652973,-500.0,0.0001551,2]
[333490057,1722192652983,-500.0,0.0001551,2]
[333490058,1722192652993,-500.0,0.0001551,2]
[333490059,1722192653003,-500.0,0.0001551,2]
[333490060,1722192653014,-500.0,0.0001551,2]
[333490061,1722192653025,-500.0,0.0001551,2]
[333490062,1722192653036,-500.0,0.0001551,2]
[333490063,1722192653045,-500.0,0.0001551,2]
[333490064,1722192653056,-500.0,0.0001551,2]
[333490065,1722192653066,-500.0,0.0001551,2]
[333490066,1722192653077,-500.0,0.0001551,2]
[333490067,1722192653087,-500.0,0.0001551,2]
[333490068,1722192653096,-546.16,0.0001551,2]
[333490069,1722192653107,-500.0,0.0001551,2]
[333490070,1722192653118,-500.0,0.0001551,2]
[333490071,1722192653127,-500.0,0.0001551,2]
[333490072,1722192653137,-500.0,0.0001551,2]
[333490073,1722192653148,-500.0,0.0001551,2]
[333490074,1722192653160,-1847.33,0.0001551,2]
[333490075,1722192653169,-500.0,0.0001551,2]
[333490076,1722192653178,-692.58,0.0001551,2]
[333490077,1722192653189,-500.0,0.0001551,2]
[333490078,1722192653198,-500.0,0.0001551,2]
[333490079,1722192653208,-500.0,0.0001551,2]
[333490080,1722192653217,-500.0,0.0001551,2]
[333490081,1722192653227,-500.0,0.0001551,2]
[333490082,1722192653238,-500.0,0.0001551,2]
[333490083,1722192653248,-500.0,0.0001551,2]
[333490084,1722192653258,-393.96099528,0.0001551,2]
[333490085,1722192653268,-500.0,0.0001551,2]
[333490086,1722192653278,-500.0,0.0001551,2]
[333490087,1722192653288,-500.0,0.0001551,2]
[333490088,1722192653297,-500.0,0.0001551,2]
[333490089,1722192653307,-500.0,0.0001551,2]
[333490090,1722192653316,-500.0,0.0001551,2]
[333490091,1722192653326,-500.0,0.0001551,2]
[333490092,1722192653335,-612.71294329,0.0001551,2]
[333490093,1722192653345,-500.0,0.0001551,2]
[333490094,1722192653355,-500.0,0.0001551,2]
[333490095,1722192653364,-500.0,0.0001551,2]
[333490096,1722192653374,-500.0,0.0001551,2]
[333490097,1722192653383,-500.0,0.0001551,2]
[333490098,1722192653393,-500.0,0.0001551,2]
[333490099,1722192653403,-500.0,0.0001551,2]
[333490100,1722192653413,-500.0,0.0001551,2]
[333490101,1722192653423,-500.0,0.0001551,2]
[333490102,1722192653433,-500.0,0.0001551,2]
[333490103,1722192653442,-500.0,0.0001551,2]
[333490104,1722192653452,-500.0,0.0001551,2]
[333490105,1722192653461,-592.99,0.0001551,2]
[333490106,1722192653471,-500.0,0.0001551,2]
[333490107,1722192653481,-4703.44,0.0001551,2]
[333490108,1722192653491,-500.0,0.0001551,2]
[333490109,1722192653501,-500.0,0.0001551,2]
[333490110,1722192653511,-500.0,0.00015511,2]
[333490111,1722192653521,-500.0,0.00015511,2]
[333490112,1722192653531,-500.0,0.00015511,2]
[333490113,1722192653541,-265.68898801,0.00015511,2]
[333490114,1722192653551,-500.0,0.00015511,2]
[333490115,1722192653560,-500.0,0.00015511,2]
[333490116,1722192653570,-500.0,0.00015511,2]
[333490117,1722192653579,-500.0,0.00015511,2]
[333490118,1722192653589,-500.0,0.00015511,2]
[333490119,1722192653599,-500.0,0.00015511,2]
[333490120,1722192653609,-500.0,0.00015511,2]
[333490121,1722192653618,-206.7964656,0.00015562,2]
[333490122,1722192653628,-153.0,0.00015562,2]
[333490123,1722192653637,-153.0,0.00015562,2]
[333490124,1722192653647,-206.7964656,0.00015562,2]
[333490125,1722192653656,-153.0,0.00015562,2]
[333490126,1722192653666,-205.0368934,0.00015562,2]
[333490127,1722192653676,-1516.17,0.00015568,2]
[333490128,1722192653686,-12846.8901306,0.00015569,2]
[333490129,1722192653696,-500.0,0.00015578,2]
[333490130,1722192653705,-500.0,0.0001562,2]
[333490131,1722192653716,-500.0,0.00015621,2]
[333490132,1722192653726,-206.7714858,0.00015671,2]
[333490133,1722192653737,-153.0,0.00015671,2]
[333490134,1722192653748,-153.0,0.00015671,2]
[333490135,1722192653757,-153.0,0.00015671,2]
[333490136,1722192653767,-500.0,0.00015696,2]
[333490137,1722192653776,-232.89658833,0.00015696,2]
[333490138,1722192653788,-1516.17,0.00015696,2]
[333490139,1722192653798,-1516.17,0.00015696,2]
[333490140,1722192653809,-1516.17,0.00015696,2]
[333490141,1722192653819,-1516.17,0.00015696,2]
[333490142,1722192653828,-1516.32287596,0.00015696,2]
[333490143,1722192653838,-500.0,0.00015706,2]
[333490144,1722192653847,-500.0,0.00015706,2]
[333490145,1722192653856,-25134.63107012,0.00015707,2]
[333490146,1722192653866,-1762.63074296,0.00015707,2]
[333490147,1722192653876,-4238.58194221,0.00015707,2]
[333490148,1722192653885,-2123.79266689,0.00015707,2]
[333490149,1722192653896,-1437.71408354,0.00015707,2]
[333490150,1722192653906,-2277.28013783,0.00015707,3]
[333490151,1722192653915,-1500.0,0.00015707,2]
[333490152,1722192653926,-27654.55009536,0.00015707,2]
[333490153,1722192653937,-372.48106579,0.00015707,2]
[333490154,1722192653948,-4179.8496888,0.00015708,2]
[333490155,1722192653958,-6998.84676533,0.00015708,2]
[333490156,1722192653968,-9638.65754911,0.00015708,2]
[333490157,1722192654056,-3086.48005586,0.00015708,2]
[333490158,1722192654066,-1990.74389749,0.00015708,2]
[333490159,1722192654076,-1162.07321644,0.00015708,2]
[333490160,1722192654086,-2138.33412176,0.00015708,2]
[333490161,1722192654095,-492.24410655,0.00015708,2]
[333490162,1722192654105,-1171.98715204,0.00015708,2]
[333490163,1722192654116,-1382.39567294,0.00015708,2]
[333490164,1722192654126,-4017.8371628,0.00015708,2]
[333490165,1722192654135,-1400.25988373,0.00015708,2]
[333490166,1722192654144,-1645.83721196,0.00015708,2]
[333490167,1722192654153,-5428.83599123,0.00015708,2]
[333490168,1722192654163,-815.82252143,0.00015708,2]
[333490169,1722192654173,-994.52512511,0.00015708,2]
[333490170,1722192654183,-65024.6827735,0.00015709,2]
[333490171,1722192654193,-526.94940313,0.00015712,2]
[333490172,1722192654203,-244.96548145,0.00015712,2]
[333490173,1722192654213,-299.75335319,0.00015744,2]
[333490174,1722192654222,-267.99213488,0.00015751,2]
[333490175,1722192654232,-209.06981655,0.00015751,2]
[333490176,1722192654241,-500.0,0.00015775,2]
[333490177,1722192654250,-504.66,0.00015775,2]
[333490178,1722192654260,-572.92,0.00015775,2]
[333490179,1722192654270,-1110.54,0.00015775,2]
[333490180,1722192654279,-1640.12,0.00015775,2]
[333490181,1722192654289,-500.0,0.00015775,2]
[333490182,1722192654299,-500.0,0.00015775,2]
[333490183,1722192654308,-500.0,0.00015775,2]
[333490184,1722192654319,-500.0,0.00015775,2]
[333490185,1722192654328,-529.15,0.00015775,2]
[333490186,1722192654338,-500.0,0.00015775,2]
[333490187,1722192654347,-500.0,0.00015775,2]
[333490188,1722192654357,-500.0,0.00015775,2]
[333490189,1722192654366,-500.0,0.00015775,2]
[333490190,1722192654376,-500.0,0.00015775,2]
[333490191,1722192654385,-500.0,0.00015775,2]
[333490192,1722192654395,-500.0,0.00015775,2]
[333490193,1722192654405,-494.69680716,0.00015782,2]
[333490194,1722192654414,-473.28,0.00015782,2]
[333490195,1722192654424,-500.0,0.00015782,2]
[333490196,1722192654434,-500.0,0.00015782,2]
[333490197,1722192654443,-500.0,0.00015782,2]
[333490198,1722192654452,-500.0,0.00015782,2]
[333490199,1722192654461,-539.62435277,0.00015782,2]
[333490200,1722192654472,-500.0,0.00015782,2]
[333490201,1722192654482,-1752.5,0.00015782,2]
[333490202,1722192654492,-500.0,0.00015783,2]
[333490203,1722192654501,-500.0,0.00015784,2]
[333490204,1722192654511,-500.0,0.00015784,2]
[333490205,1722192654520,-500.0,0.00015784,2]
[333490206,1722192654530,-500.0,0.00015784,2]
[333490207,1722192654541,-500.0,0.00015784,2]
[333490208,1722192654550,-500.0,0.00015784,2]
[333490209,1722192654560,-500.0,0.00015784,2]
[333490210,1722192654570,-500.0,0.00015784,2]
[333490211,1722192654579,-500.0,0.00015784,2]
[333490212,1722192654588,-500.0,0.00015784,2]
[333490213,1722192654598,-500.0,0.00015784,2]
[333490214,1722192654608,-500.0,0.00015784,2]
[333490215,1722192654618,-500.0,0.00015784,2]
[333490216,1722192654627,-1847.33,0.00015784,2]
[333490217,1722192654637,-332.07879351,0.00015784,2]
[333490218,1722192654646,-692.58,0.00015784,2]
[333490219,1722192654656,-500.0,0.00015784,2]
[333490220,1722192654665,-500.0,0.00015784,2]
[333490221,1722192654675,-500.0,0.00015784,2]
[333490222,1722192654684,-500.0,0.00015784,2]
[333490223,1722192654694,-500.0,0.00015784,2]
[333490224,1722192654704,-500.0,0.00015784,2]
[333490225,1722192654713,-500.0,0.00015784,2]
[333490226,1722192654725,-500.0,0.00015784,2]
[333490227,1722192654735,-500.0,0.00015784,2]
[333490228,1722192654746,-629.05,0.00015784,2]
[333490229,1722192654756,-500.0,0.00015784,2]
[333490230,1722192654766,-500.0,0.00015784,2]
[333490231,1722192654776,-500.0,0.00015784,2]
[333490232,1722192654787,-500.0,0.00015784,2]
[333490233,1722192654796,-500.0,0.00015784,2]
[333490234,1722192654805,-500.0,0.00015784,2]
[333490235,1722192654815,-500.0,0.00015784,2]
[333490236,1722192654824,-500.0,0.00015784,2]
[333490237,1722192654834,-500.0,0.00015784,2]
[333490238,1722192654844,-500.0,0.00015784,2]
[333490239,1722192654853,-500.0,0.00015784,2]
[333490240,1722192654863,-500.0,0.00015784,2]
[333490241,1722192654872,-592.99,0.00015784,2]
[333490242,1722192654882,-260.95454238,0.00015784,2]
[333490243,1722192654893,-4703.44,0.00015784,2]
[333490244,1722192654904,-500.0,0.00015784,2]
[333490245,1722192654915,-500.0,0.00015784,2]
[333490246,1722192654926,-382.88,0.00015785,2]
[333490247,1722192654937,-500.0,0.00015785,2]
[333490248,1722192654947,-500.0,0.00015785,2]
[333490249,1722192654958,-500.0,0.00015785,2]
[333490250,1722192654968,-500.0,0.00015785,2]
[333490251,1722192654977,-500.0,0.00015785,2]
[333490252,1722192654986,-500.0,0.00015785,2]
[333490253,1722192654996,-500.0,0.00015895,2]
[333490254,1722192655005,-154.68290005,0.00015952,2]
[333490255,1722192655014,-1500.0,0.00016,2]
[333490256,1722192655027,-1500.0,0.00016,2]
[333490257,1722192655037,-1500.0,0.00016,2]
[333490258,1722192655046,-1428.35,0.00016,2]
[333490259,1722192655056,-37396.44396962,0.00016038,2]
[333490260,1722192655136,-30488.96299732,0.00016038,2]
[333490290,1722193627137,-166.081333,0.00012119,2]
[333490291,1722193628147,-79.67870462,0.00012119,2]
[333490292,1722193628169,-191.49221591,0.00012886,2]
[333490293,1722193628191,-28.82907947,0.00012986,2]
[333490294,1722193646120,-129.68913353,0.00012986,2]
[333490295,1722193646141,-170.305036,0.00013096,2]
[333490296,1722193646163,-170.305036,0.00013542,2]
[333490297,1722193646187,-179.238036,0.00013562,2]
[333490298,1722193646208,-115.92672248,0.00013619,2]
[333490299,1722193649089,-243.48453102,0.00013619,2]
[333490300,1722193649113,-179.238036,0.00013679,2]
[333490301,1722193649134,-199.1129963,0.00013699,2]
[333490302,1722193649157,-179.238036,0.00013797,2]
[333490303,1722193649179,-179.238036,0.00013915,2]
[333490304,1722193649200,-139.80143668,0.00013989,2]
[333490305,1722193654113,-30.50359932,0.00013989,2]
[333490306,1722193654137,-179.238036,0.00014033,2]
[333490307,1722193654161,-179.238036,0.00014151,2]
[333490308,1722193654183,-576.699505,0.00014247,2]
[333490309,1722193654205,-166.422176,0.00014247,2]
[333490310,1722193654229,-179.238036,0.00014268,2]
[333490311,1722193654250,-170.305036,0.00014435,2]
[333490312,1722193654276,-207.0,0.00014685,2]
[333490313,1722193654298,-161.71914646,0.00014686,2]
[333490352,1722193838137,-158.444374,0.00012986,2]
[333490353,1722193838147,-339.27393977,0.00014686,2]
[333490354,1722193838157,-500.0,0.00014686,2]
[333490356,1722193838166,-507.57307536,0.00014686,2]
[333490357,1722193838176,-500.0,0.00014686,2]
[333490359,1722193838185,-500.0,0.00014686,2]
[333490361,1722193838196,-500.0,0.00014686,2]
[333490363,1722193838207,-1629.09525916,0.00014686,2]
[333490365,1722193838220,-529.0,0.00014689,2]
[333490367,1722193838231,-500.0,0.00014689,2]
[333490369,1722193838241,-879.18,0.00014689,2]
[333490370,1722193838252,-1298.43,0.00014689,2]
[333490372,1722193838262,-500.0,0.00014689,2]
[333490374,1722193838273,-500.0,0.00014689,2]
[333490376,1722193838283,-500.0,0.00014689,2]
[333490378,1722193838292,-308.7,0.00014689,2]
[333490380,1722193838302,-500.0,0.00014689,2]
[333490381,1722193838311,-500.0,0.00014689,2]
[333490383,1722193838321,-390.7,0.00014689,2]
[333490385,1722193838331,-500.0,0.00014689,2]
[333490387,1722193838341,-500.0,0.00014689,2]
[333490388,1722193838350,-500.0,0.00014689,2]
[333490389,1722193838360,-500.0,0.00014689,2]
[333490391,1722193838370,-526.94940313,0.0001469,2]
[333490393,1722193838380,-267.99213488,0.0001469,2]
[333490395,1722193838390,-1017.02261717,0.00014743,2]
[333490397,1722193838400,-200.0,0.00014843,2]
[333490399,1722193838410,-170.305036,0.00014881,2]
[333490401,1722193838420,-500.0,0.0001496,2]
[333490403,1722193838431,-500.0,0.0001496,2]
[333490405,1722193838441,-500.0,0.0001496,2]
[333490407,1722193838453,-500.0,0.0001496,2]
[333490408,1722193838462,-500.0,0.0001496,2]
[333490409,1722193838472,-500.0,0.0001496,2]
[333490410,1722193838482,-500.0,0.0001496,2]
[333490411,1722193838492,-500.0,0.0001496,2]
[333490412,1722193838501,-500.0,0.0001496,2]
[333490413,1722193838510,-500.0,0.0001496,2]
[333490414,1722193838519,-500.0,0.00014962,2]
[333490415,1722193838529,-570.32,0.00014962,2]
[333490416,1722193838538,-234.45720803,0.00014962,2]
[333490421,1722193840765,-1228.01279197,0.00014962,2]
[333490422,1722193840775,-548.29,0.00014962,2]
[333490423,1722193840784,-448.53555875,0.00014962,2]
[333490495,1722193846302,-51.46444125,0.00014962,2]
[333490496,1722193846312,-235.6,0.00014962,2]
[333490498,1722193846322,-212.93555875,0.00014962,2]
[333490501,1722194829161,-158.444374,0.00012986,2]
[333490502,1722194829183,-252.2315617,0.00013118,2]
[333490503,1722194829210,-187.142933,0.00013557,2]
[333490504,1722194829235,-2202.4189696,0.00013699,2]
[333490505,1722194829260,-183.05721049,0.00014011,2]
[333490506,1722194829281,-556.185638,0.00014247,2]
[333490507,1722194829305,-187.142933,0.00014264,2]
[333490508,1722194829330,-1189.74402452,0.000146,2]
[333490509,1722194829353,-889.89479005,0.00014612,2]
[333490510,1722194829376,-300.0,0.00014688,2]
[333490511,1722194829399,-391.28442466,0.00014689,2]
[333490512,1722194829420,-500.0,0.00014689,2]
[333490513,1722194829444,-500.0,0.00014689,2]
[333490514,1722194829466,-500.0,0.00014689,2]
[333490515,1722194829489,-500.0,0.00014689,2]
[333490516,1722194829511,-500.0,0.00014689,2]
[333490517,1722194829534,-500.0,0.00014689,2]
[333490518,1722194829557,-286.11327719,0.00014689,2]
[333490519,1722194837101,-213.88672281,0.00014689,2]
[333490520,1722194837126,-372.33943119,0.00014689,2]
[333490521,1722194854141,-127.66056881,0.00014689,2]
[333490522,1722194854166,-55.39664168,0.00014689,2]
[333490523,1722194955119,-250.0,0.00010959,2]
[333490527,1722194972116,-149.18,0.00010959,2]
[333490528,1722194972138,-260.022173,0.000125,2]
[333490529,1722194973135,-206.172784,0.000125,2]
[333490578,1722195032368,-569.30706768,0.000124,2]
[333490580,1722195032378,-569.30706764,0.00012426,2]
[333490582,1722195032389,-569.30706764,0.00012451,2]
[333490584,1722195032399,-569.30706764,0.00012477,2]
[333490586,1722195032409,-2368.1352861,0.000125,2]
[333490588,1722195032420,-250.04869026,0.000125,2]
[333490590,1722195032430,-1629.09525916,0.000125,2]
[333490594,1722195032443,-569.30706764,0.00012502,2]
[333490597,1722195032453,-569.30706764,0.00012528,2]
[333490600,1722195032465,-569.30706764,0.00012553,2]
[333490603,1722195032475,-569.30706764,0.00012579,2]
[333490634,1722195032651,-569.30706764,0.00012605,2]
[333490636,1722195032664,-569.30706764,0.0001263,2]
[333490638,1722195032673,-158.448717,0.00012986,2]
[333490640,1722195032683,-170.130636,0.00013264,2]
[333490642,1722195032693,-170.130636,0.00013333,2]
[333490644,1722195032703,-170.130636,0.00013402,2]
[333490646,1722195032714,-170.130636,0.00013471,2]
[333490648,1722195032724,-170.130636,0.00013541,2]
[333490650,1722195032734,-170.130636,0.0001361,2]
[333490651,1722195032744,-170.130636,0.00013679,2]
[333490652,1722195032756,-170.130636,0.00013748,2]
[333490653,1722195032766,-170.130636,0.00013817,2]
[333490654,1722195032775,-1020.9703317,0.00013836,2]
[333490655,1722195032784,-170.130636,0.00013886,2]
[333490656,1722195032793,-170.130636,0.00013955,2]
[333490657,1722195032803,-560.326469,0.00014247,2]
[333490658,1722195032813,-778.65794125,0.00014589,2]
[333490659,1722195032823,-356.0471323,0.00014627,2]
[333490660,1722195032832,-500.0,0.00014689,2]
[333490661,1722195032841,-500.0,0.00014689,2]
[333490662,1722195032851,-639.12,0.00014689,2]
[333490663,1722195032860,-500.0,0.00014689,2]
[333490664,1722195032870,-1763.75,0.00014689,2]
[333490665,1722195032879,-500.0,0.00014689,2]
[333490666,1722195032889,-500.0,0.00014689,2]
[333490667,1722195032899,-670.18,0.00014689,2]
[333490668,1722195032908,-530.16182954,0.00014689,2]
[333490669,1722195032917,-500.0,0.00014689,2]
[333490670,1722195032927,-500.0,0.00014689,2]
[333490671,1722195032936,-500.0,0.00014689,2]
[333490672,1722195032948,-500.0,0.00014689,2]
[333490673,1722195032959,-500.0,0.00014689,2]
[333490674,1722195032968,-500.0,0.00014689,2]
[333490675,1722195032977,-500.0,0.00014689,2]
[333490676,1722195032986,-500.0,0.00014689,2]
[333490677,1722195033001,-500.0,0.00014689,2]
[333490678,1722195033012,-500.0,0.00014689,2]
[333490679,1722195033021,-186.99875381,0.00014689,2]
[333490680,1722195033031,-500.0,0.00014689,2]
[333490681,1722195033042,-500.0,0.00014689,2]
[333490682,1722195033053,-500.0,0.00014689,2]
[333490683,1722195033063,-384.22891099,0.00014689,2]
[333490684,1722195033077,-158.40108901,0.00014689,2]
[333490685,1722195033087,-493.82842411,0.00014689,2]
[333490686,1722195033099,-6.17157589,0.00014689,2]
[333490687,1722195033108,-500.0,0.00014689,2]
[333490688,1722195033118,-500.0,0.00014689,2]
[333490689,1722195033127,-500.0,0.00014689,2]
[333490690,1722195033137,-500.0,0.00014689,2]
[333490691,1722195033146,-500.0,0.00014689,2]
[333490692,1722195033156,-500.0,0.00014689,2]
[333490693,1722195033165,-500.0,0.00014689,2]
[333490694,1722195033174,-500.0,0.00014689,2]
[333490695,1722195033183,-248.96640515,0.00014689,2]
[333490729,1722195038508,-738.58105149,0.000125,2]
[333490730,1722195038518,-569.30706764,0.00012656,2]
[333490731,1722195038528,-569.30706764,0.00012681,2]
[333490732,1722195038538,-273.89909726,0.00014688,2]
[333490733,1722195038548,-442.16580052,0.00014689,5]
[333490734,1722195038558,-251.03359485,0.00014689,2]
[333490735,1722195038568,-500.0,0.00014689,2]
[333490736,1722195038580,-500.0,0.00014689,2]
[333490737,1722195038590,-983.44,0.00014689,2]
[333490738,1722195038603,-536.03,0.00014689,2]
[333490739,1722195038615,-1432.64,0.00014689,2]
[333490740,1722195038625,-500.0,0.00014689,2]
[333490741,1722195038636,-500.0,0.00014689,2]
[333490742,1722195038646,-500.0,0.00014689,2]
[333490743,1722195038657,-500.0,0.00014689,2]
[333490744,1722195038666,-500.0,0.00014689,2]
[333490745,1722195038676,-500.0,0.00014689,2]
[333490746,1722195038686,-546.52,0.00014689,2]
[333490747,1722195038696,-216.21927671,0.00014689,2]
[333490748,1722195038706,-500.0,0.00014689,2]
[333490749,1722195038716,-1353.46226589,0.00014689,2]
[333490750,1722195038728,-207.35773411,0.00014689,2]
[333490751,1722195038738,-500.0,0.00014689,2]
[333490752,1722195038749,-500.0,0.00014689,2]
[333490753,1722195038759,-500.0,0.00014689,2]
[333490754,1722195038769,-597.36,0.00014689,2]
[333490755,1722195038779,-500.0,0.00014689,2]
[333490756,1722195038789,-500.0,0.00014689,2]
[333490757,1722195038799,-500.0,0.00014689,2]
[333490758,1722195038809,-500.0,0.00014689,2]
[333490759,1722195038819,-500.0,0.00014689,2]
[333490760,1722195038829,-500.0,0.00014689,2]
[333490761,1722195038839,-500.0,0.00014689,2]
[333490762,1722195038848,-500.0,0.00014689,2]
[333490763,1722195038858,-500.0,0.00014689,2]
[333490764,1722195038867,-507.37909551,0.00014689,2]
[333490765,1722195038876,-206.7446654,0.00014712,2]
[333490766,1722195038885,-4170.76986224,0.00014794,2]
[333490767,1722195038896,-9361.70556327,0.000148,2]
[333490768,1722195038910,-2287.14595956,0.000148,2]
[333490769,1722195038922,-898.78971019,0.000148,2]
[333490770,1722195038935,-1796.21426784,0.000148,2]
[333490771,1722195038948,-17873.38670729,0.000148,2]
[333490772,1722195038959,-5823.96389892,0.000148,2]
[333490773,1722195038975,-19947.1204921,0.000148,2]
[333490774,1722195038984,-22870.94938106,0.0001495,2]
[333490815,1722195040605,-500.0,0.00014689,2]
[333490818,1722195040615,-2939.54392272,0.0001495,2]
[333490820,1722195040627,-394.70972448,0.0001495,2]
[333491114,1722195043538,-569.30706764,0.00012707,2]
[333491116,1722195043548,-4711.42391764,0.0001495,2]
[333491118,1722195043558,-368.01,0.00014959,2]
[333491120,1722195043567,-500.0,0.00014959,2]
[333491132,1722195043674,-351.25901472,0.00014959,2]
[333491135,1722195043686,-148.74098528,0.00014959,2]
[333491137,1722195043695,-500.0,0.00014959,2]
[333491139,1722195043705,-500.0,0.00014959,2]
[333491141,1722195043714,-500.0,0.00014959,2]
[333491143,1722195043724,-500.0,0.00014959,2]
[333491145,1722195043734,-500.0,0.00014959,2]
[333491147,1722195043743,-500.0,0.00014959,2]
[333491149,1722195043753,-588.29253368,0.00014959,2]
[333491151,1722195043762,-362.96648104,0.00014959,2]
[333491153,1722195043778,-137.03351896,0.00014959,2]
[333491155,1722195043787,-500.0,0.00014959,2]
[333491157,1722195043796,-500.0,0.00014959,2]
[333491159,1722195043807,-500.0,0.00014959,2]
[333491161,1722195043817,-500.0,0.00014959,2]
[333491163,1722195043826,-500.0,0.00014959,2]
[333491165,1722195043836,-500.0,0.00014959,2]
[333491167,1722195043845,-500.0,0.00014959,2]
[333491169,1722195043855,-500.0,0.00014959,2]
[333491171,1722195043864,-500.0,0.00014959,2]
[333491173,1722195043874,-500.0,0.00014959,2]
[333491175,1722195043883,-500.0,0.00014959,2]
[333491177,1722195043892,-500.0,0.00014959,2]
[333491179,1722195043902,-500.0,0.00014959,2]
[333491181,1722195043911,-512.18768842,0.00014959,2]
[333491183,1722195043921,-500.0,0.00014959,2]
[333491185,1722195043930,-500.0,0.00014959,2]
[333491187,1722195043939,-518.23,0.00014959,2]
[333491189,1722195043949,-500.0,0.00014959,2]
[333491191,1722195043959,-500.0,0.00014959,2]
[333491193,1722195043969,-500.0,0.00014959,2]
[333491195,1722195043978,-502.08201003,0.00014959,2]
[333491197,1722195043987,-500.0,0.00014959,2]
[333491199,1722195043999,-279.53378509,0.00014959,2]
[333491201,1722195044008,-500.0,0.00014959,2]
[333491203,1722195044017,-500.0,0.00014959,2]
[333491205,1722195044028,-500.0,0.00014959,2]
[333491207,1722195044037,-502.76650369,0.00014959,2]
[333491209,1722195044046,-500.0,0.00014959,2]
[333491211,1722195044055,-500.0,0.00014959,2]
[333491213,1722195044064,-500.0,0.00014959,2]
[333491215,1722195044074,-500.0,0.00014959,2]
[333491217,1722195044083,-500.0,0.00014959,2]
[333491219,1722195044093,-511.09747774,0.00014959,2]
[333491221,1722195044102,-439.49389548,0.00014959,2]
[333491222,1722195044111,-500.0,0.00014959,2]
[333491224,1722195044121,-500.0,0.00014959,2]
[333491226,1722195044130,-500.0,0.00014959,2]
[333491228,1722195044139,-500.0,0.00014959,2]
[333491230,1722195044149,-500.0,0.00014959,2]
[333491232,1722195044158,-500.0,0.00014959,2]
[333491234,1722195044168,-500.0,0.00014959,2]
[333491236,1722195044177,-500.0,0.00014959,2]
[333491238,1722195044188,-500.0,0.00014959,2]
[333491240,1722195044197,-500.0,0.00014959,2]
[333491242,1722195044207,-500.0,0.00014959,2]
[333491244,1722195044217,-500.0,0.00014959,2]
[333491246,1722195044227,-500.0,0.00014959,2]
[333491248,1722195044236,-500.0,0.00014959,2]
[333491249,1722195044246,-500.0,0.00014959,2]
[333491252,1722195044255,-500.0,0.00014959,2]
[333491254,1722195044265,-224.27595518,0.00014959,2]
[333491255,1722195044274,-510.54,0.00014959,2]
[333491258,1722195044284,-500.0,0.00014959,2]
[333491260,1722195044293,-3723.56,0.00014959,2]